fUSD/lending_fUSD_20260115
["ID","MTS","AMOUNT","RATE_DAILY","PERIOD"]
[402007806,1768456307111,-1195.69,0.00042191,30]
[402007807,1768456307120,-1189.32,0.00042191,30]
[402007808,1768456307129,-500.0,0.00042191,30]
[402007809,1768456307137,-500.0,0.00042191,30]
[402007810,1768456307147,-664.53,0.00042191,30]
[402007811,1768456307157,-632.29,0.00042191,30]
[402007812,1768456307177,-884.55,0.00042191,30]
[402007813,1768456307186,-500.0,0.00042191,30]
[402007814,1768456307195,-599.58,0.00042191,30]
[402007815,1768456307205,-1060.41,0.00042191,30]
[402007816,1768456307214,-500.0,0.00042191,30]
[402007817,1768456307223,-500.0,0.00042191,30]
[402007818,1768456307234,-729.48,0.00042191,30]
[402007819,1768456307243,-500.0,0.00042191,30]
[402007820,1768456307252,-500.0,0.00042191,30]
[402007821,1768456307260,-743.67,0.00042191,30]
[402007822,1768456307269,-500.0,0.00042191,30]
[402007823,1768456307278,-638.97,0.00042191,30]
[402007824,1768456307287,-764.46,0.00042191,30]
[402007825,1768456307296,-500.0,0.00042191,30]
[402007826,1768456307305,-614.83,0.00042191,30]
[402007827,1768456307314,-500.0,0.00042191,30]
[402007828,1768456307322,-500.0,0.00042191,30]
[402007829,1768456307330,-500.0,0.00042191,30]
[402007830,1768456307338,-500.0,0.00042191,30]
[402007831,1768456307347,-960.32,0.00042191,30]
[402007832,1768456307356,-1151.38,0.00042191,30]
[402007833,1768456307365,-803.55,0.00042191,30]
[402007834,1768456307374,-500.0,0.00042191,30]
[402007835,1768456307383,-1518.47,0.00042191,30]
[402007836,1768456307391,-792.54,0.00042191,30]
[402007837,1768456307401,-500.0,0.00042191,30]
[402007838,1768456307411,-500.0,0.00042191,30]
[402007839,1768456307421,-500.0,0.00042191,30]
[402007840,1768456307430,-500.0,0.00042191,30]
[402007841,1768456307440,-500.0,0.00042191,30]
[402007842,1768456307449,-522.78,0.00042191,30]
[402007843,1768456307458,-500.0,0.00042191,30]
[402007844,1768456307467,-500.0,0.00042191,30]
[402007845,1768456307475,-746.43,0.00042191,30]
[402007846,1768456307485,-500.0,0.00042191,30]
[402007847,1768456307494,-500.0,0.00042191,30]
[402007848,1768456307503,-500.0,0.00042191,30]
[402007849,1768456307513,-500.0,0.00042191,30]
[402007850,1768456307521,-500.0,0.00042191,30]
[402007851,1768456307531,-500.0,0.00042191,30]
[402007852,1768456307540,-500.0,0.00042191,30]
[402007853,1768456307549,-500.0,0.00042191,30]
[402007854,1768456307558,-500.0,0.00042191,30]
[402007855,1768456307567,-785.24,0.00042191,30]
[402007856,1768456307576,-500.0,0.00042191,30]
[402007857,1768456307585,-500.0,0.00042191,30]
[402007858,1768456307594,-1009.98,0.00042191,30]
[402007859,1768456307603,-561.39,0.00042191,30]
[402007860,1768456307613,-1031.32,0.00042191,30]
[402007861,1768456307622,-500.0,0.00042191,30]
[402007862,1768456307631,-799.81,0.00042191,30]
[402007863,1768456307640,-500.0,0.00042191,30]
[402007864,1768456307651,-1207.94,0.00042191,30]
[402007865,1768456307660,-500.0,0.00042191,30]
[402007866,1768456307669,-500.0,0.00042191,30]
[402007867,1768456307678,-526.47,0.00042191,30]
[402007868,1768456307687,-1487.05,0.00042191,30]
[402007869,1768456307695,-500.0,0.00042191,30]
[402007870,1768456307704,-500.0,0.00042191,30]
[402007871,1768456307713,-2377.12,0.00042191,30]
[402007872,1768456307722,-500.0,0.00042191,30]
[402007873,1768456307730,-775.2,0.00042191,30]
[402007874,1768456307740,-500.0,0.00042191,30]
[402007875,1768456307749,-510.84,0.00042191,30]
[402007876,1768456307758,-1459.33,0.00042191,30]
[402007877,1768456307767,-914.3,0.00042191,30]
[402007878,1768456307776,-500.0,0.00042191,30]
[402007879,1768456307785,-1202.18,0.00042191,30]
[402007880,1768456307793,-500.0,0.00042191,30]
[402007881,1768456307802,-500.0,0.00042191,30]
[402007882,1768456307811,-1209.34,0.00042191,30]
[402007883,1768456307820,-522.08146893,0.00042191,30]
[402007884,1768456307829,-500.0,0.00042191,30]
[402007885,1768456307837,-1506.75,0.00042191,30]
[402007886,1768456307846,-500.0,0.00042191,30]
[402007887,1768456307855,-500.0,0.00042191,30]
[402007888,1768456307864,-664.83,0.00042191,30]
[402007889,1768456307873,-500.0,0.00042191,30]
[402007890,1768456307881,-500.0,0.00042191,30]
[402007891,1768456307890,-680.73,0.00042191,30]
[402007892,1768456307899,-500.0,0.00042191,30]
[402007893,1768456307908,-596.93,0.00042191,30]
[402007894,1768456307917,-500.0,0.00042191,30]
[402007895,1768456307925,-832.77,0.00042191,30]
[402007896,1768456307934,-1390.2,0.00042191,30]
[402007897,1768456307943,-500.0,0.00042191,30]
[402007898,1768456307951,-2147.72,0.00042191,30]
[402007899,1768456307960,-610.89,0.00042191,30]
[402007900,1768456307969,-500.0,0.00042191,30]
[402007901,1768456307977,-500.0,0.00042191,30]
[402007902,1768456307987,-500.0,0.00042191,30]
[402007903,1768456307996,-500.0,0.00042191,30]
[402007904,1768456308006,-540.48,0.00042191,30]
[402007905,1768456308015,-500.0,0.00042191,30]
[402007906,1768456308025,-500.0,0.00042191,30]
[402007907,1768456308034,-1604.52,0.00042191,30]
[402007908,1768456308042,-500.0,0.00042191,30]
[402007909,1768456308051,-502.98335482,0.00042191,5]
[402007910,1768456308060,-631.05,0.00042191,30]
[402007911,1768456308069,-318.34934462,0.00042191,30]
[402007912,1768456308079,-563.92,0.00042191,30]
[402007913,1768456308088,-662.82,0.00042191,30]
[402007914,1768456308097,-1751.71,0.00042191,30]
[402007915,1768456308106,-1774.48,0.00042191,30]
[402007916,1768456308115,-693.5,0.00042191,30]
[402007917,1768456308124,-500.0,0.00042191,30]
[402007918,1768456308134,-500.0,0.00042191,30]
[402007919,1768456308143,-500.0,0.00042191,30]
[402007920,1768456308153,-500.0,0.00042191,30]
[402007921,1768456308166,-668.97,0.00042191,30]
[402007922,1768456308175,-586.79,0.00042191,30]
[402007923,1768456308184,-358.37721075,0.00042191,30]
[402007924,1768456308193,-500.0,0.00042191,30]
[402007925,1768456308204,-1425.42,0.00042191,30]
[402007926,1768456308213,-500.0,0.00042191,30]
[402007927,1768456308222,-768.68,0.00042191,30]
[402007928,1768456308234,-500.0,0.00042191,30]
[402007929,1768456308243,-500.0,0.00042191,30]
[402007930,1768456308254,-500.0,0.00042191,30]
[402007931,1768456308263,-2253.59,0.00042191,30]
[402007932,1768456308272,-500.0,0.00042191,30]
[402007933,1768456308281,-1332.22,0.00042191,30]
[402007934,1768456308291,-2288.89,0.00042191,30]
[402007935,1768456308300,-605.16,0.00042191,30]
[402007936,1768456308310,-795.95,0.00042191,30]
[402007937,1768456308319,-500.0,0.00042191,30]
[402007938,1768456308327,-1059.96,0.00042191,30]
[402007939,1768456308337,-793.98,0.00042191,30]
[402007940,1768456308347,-2002.1,0.00042191,30]
[402007941,1768456308356,-2162.23,0.00042191,30]
[402007942,1768456308365,-500.0,0.00042191,30]
[402007943,1768456308374,-504.91,0.00042191,30]
[402007944,1768456308383,-532.7106536,0.00042191,30]
[402007945,1768456308392,-768.39,0.00042191,30]
[402007946,1768456308403,-697.86,0.00042191,30]
[402007947,1768456308412,-563.45,0.00042191,30]
[402007948,1768456308422,-1132.27,0.00042191,30]
[402007949,1768456308431,-500.0,0.00042191,30]
[402007950,1768456308440,-1030.03,0.00042191,30]
[402007951,1768456308449,-2945.98,0.00042191,30]
[402007952,1768456308458,-500.0,0.00042191,30]
[402007953,1768456308467,-500.0,0.00042191,30]
[402007954,1768456308476,-586.52,0.00042191,30]
[402007955,1768456308484,-1757.27,0.00042191,30]
[402007956,1768456308494,-500.0,0.00042191,30]
[402007957,1768456308504,-1779.76,0.00042191,30]
[402007958,1768456308513,-500.0,0.00042191,30]
[402007959,1768456308526,-516.79,0.00042191,30]
[402007960,1768456308535,-571.51,0.00042191,30]
[402007961,1768456308544,-500.0,0.00042191,30]
[402007962,1768456308554,-500.0,0.00042191,30]
[402007963,1768456308563,-500.0,0.00042191,30]
[402007964,1768456308572,-565.49949744,0.00042191,30]
[402007965,1768456308582,-1194.56,0.00042191,30]
[402007966,1768456308591,-1341.32,0.00042191,30]
[402007967,1768456308600,-1513.91,0.00042191,30]
[402007968,1768456308609,-592.79,0.00042191,30]
[402007969,1768456308619,-500.0,0.00042191,30]
[402007970,1768456308627,-1086.44,0.00042191,30]
[402007971,1768456308637,-500.0,0.00042191,30]
[402007972,1768456308646,-500.0,0.00042191,30]
[402007973,1768456308655,-500.0,0.00042191,30]
[402007974,1768456308664,-1972.8,0.00042191,30]
[402007975,1768456308674,-189.62674546,0.00042191,30]
[402007976,1768456308683,-500.0,0.00042191,30]
[402007977,1768456308692,-2409.54,0.00042191,30]
[402007978,1768456308702,-500.0,0.00042191,30]
[402007979,1768456308711,-239.70684246,0.00042191,30]
[402007980,1768456308720,-500.0,0.00042191,30]
[402007981,1768456308728,-1211.6,0.00042191,30]
[402007982,1768456308738,-500.0,0.00042191,30]
[402007983,1768456308747,-500.0,0.00042191,30]
[402007984,1768456308757,-545.73,0.00042191,30]
[402007985,1768456308953,-958.37,0.00042191,30]
[402007986,1768456308963,-500.0,0.00042191,30]
[402007987,1768456308972,-786.37,0.00042191,30]
[402007988,1768456308981,-500.0,0.00042191,30]
[402007989,1768456308990,-542.37,0.00042191,30]
[402007990,1768456308999,-664.96,0.00042191,30]
[402007991,1768456309008,-523.07,0.00042191,30]
[402007992,1768456309018,-500.0,0.00042191,30]
[402007993,1768456309027,-1372.95,0.00042191,30]
[402007994,1768456309036,-500.0,0.00042191,30]
[402007995,1768456309045,-812.51,0.00042191,30]
[402007996,1768456309054,-1455.87,0.00042191,30]
[402007997,1768456309063,-941.8,0.00042191,30]
[402007998,1768456309072,-500.0,0.00042191,30]
[402007999,1768456309082,-2662.37,0.00042191,30]
[402008000,1768456309091,-500.0,0.00042191,30]
[402008001,1768456309101,-973.33,0.00042191,30]
[402008002,1768456309110,-500.0,0.00042191,30]
[402008003,1768456309119,-1289.05,0.00042191,30]
[402008004,1768456309129,-685.1,0.00042191,30]
[402008005,1768456309139,-699.2,0.00042191,30]
[402008006,1768456309148,-1487.63,0.00042191,30]
[402008007,1768456309158,-500.0,0.00042191,30]
[402008008,1768456309172,-500.0,0.00042191,30]
[402008009,1768456309182,-500.0,0.00042191,30]
[402008010,1768456309191,-722.63,0.00042191,30]
[402008011,1768456309202,-718.84,0.00042191,30]
[402008012,1768456309212,-500.0,0.00042191,30]
[402008013,1768456309222,-1374.44,0.00042191,30]
[402008014,1768456309231,-1333.33,0.00042191,30]
[402008015,1768456309241,-500.0,0.00042191,30]
[402008016,1768456309250,-500.0,0.00042191,30]
[402008017,1768456309260,-500.0,0.00042191,30]
[402008018,1768456309270,-880.97,0.00042191,30]
[402008019,1768456309279,-500.0,0.00042191,30]
[402008020,1768456309288,-1474.36,0.00042191,30]
[402008021,1768456309298,-1370.45,0.00042191,30]
[402008022,1768456309308,-500.0,0.00042191,30]
[402008023,1768456309318,-500.0,0.00042191,30]
[402008024,1768456309327,-525.08,0.00042191,30]
[402008025,1768456309338,-500.0,0.00042191,30]
[402008026,1768456309347,-532.31,0.00042191,30]
[402008027,1768456309356,-1652.78,0.00042191,30]
[402008028,1768456309365,-500.0,0.00042191,30]
[402008029,1768456309374,-500.0,0.00042191,30]
[402008030,1768456309384,-500.0,0.00042191,30]
[402008031,1768456309393,-209.06452049,0.00042191,30]
[402008032,1768456309403,-500.0,0.00042191,30]
[402008033,1768456309413,-764.83,0.00042191,30]
[402008034,1768456309422,-938.14,0.00042191,30]
[402008035,1768456309431,-1414.71,0.00042191,30]
[402008036,1768456309441,-2387.71,0.00042191,30]
[402008037,1768456309450,-546.58,0.00042191,30]
[402008038,1768456309459,-500.0,0.00042191,30]
[402008039,1768456309468,-500.0,0.00042191,30]
[402008040,1768456309477,-500.0,0.00042191,30]
[402008041,1768456309486,-725.6,0.00042191,30]
[402008042,1768456309495,-500.0,0.00042191,30]
[402008043,1768456309504,-500.0,0.00042191,30]
[402008044,1768456309513,-500.0,0.00042191,30]
[402008045,1768456309522,-500.0,0.00042191,30]
[402008046,1768456309532,-500.0,0.00042191,30]
[402008047,1768456309542,-500.0,0.00042191,30]
[402008048,1768456309551,-507.5,0.00042191,30]
[402008049,1768456309560,-500.0,0.00042191,30]
[402008050,1768456309569,-500.0,0.00042191,30]
[402008051,1768456309579,-852.0,0.00042191,30]
[402008052,1768456309588,-785.39,0.00042191,30]
[402008053,1768456309597,-500.0,0.00042191,30]
[402008054,1768456309611,-808.51,0.00042191,30]
[402008055,1768456309620,-1558.42,0.00042191,30]
[402008056,1768456309629,-500.0,0.00042191,30]
[402008057,1768456309638,-614.75368595,0.00042191,30]
[402008058,1768456309648,-939.62,0.00042191,30]
[402008059,1768456309657,-1133.45,0.00042191,30]
[402008060,1768456309666,-951.35,0.00042191,30]
[402008061,1768456309676,-1235.87,0.00042191,30]
[402008062,1768456309685,-500.0,0.00042191,30]
[402008063,1768456309694,-500.0,0.00042191,30]
[402008064,1768456309708,-500.0,0.00042191,30]
[402008065,1768456309717,-500.0,0.00042191,30]
[402008066,1768456309729,-1344.98,0.00042191,30]
[402008067,1768456309739,-507.71,0.00042191,30]
[402008068,1768456309748,-1917.34,0.00042191,30]
[402008069,1768456309758,-929.04,0.00042191,30]
[402008070,1768456309768,-567.59,0.00042191,30]
[402008071,1768456309777,-500.0,0.00042191,30]
[402008072,1768456309786,-500.0,0.00042191,30]
[402008073,1768456309795,-1078.65,0.00042191,30]
[402008074,1768456309805,-939.8,0.00042191,30]
[402008075,1768456309814,-2051.49,0.00042191,30]
[402008076,1768456309823,-660.83,0.00042191,30]
[402008077,1768456309832,-2161.17,0.00042191,30]
[402008078,1768456309841,-1316.39,0.00042191,30]
[402008079,1768456309850,-2201.93,0.00042191,30]
[402008080,1768456309860,-584.07,0.00042191,30]
[402008081,1768456309869,-531.28,0.00042191,30]
[402008082,1768456309878,-725.19,0.00042191,30]
[402008083,1768456309888,-1119.17,0.00042191,30]
[402008084,1768456309897,-778.77,0.00042191,30]
[402008085,1768456309906,-500.0,0.00042191,30]
[402008086,1768456309916,-500.0,0.00042191,30]
[402008087,1768456309925,-1259.48,0.00042191,30]
[402008088,1768456309934,-2067.31,0.00042191,30]
[402008089,1768456309944,-1407.11,0.00042191,30]
[402008090,1768456309953,-1797.11,0.00042191,30]
[402008091,1768456309962,-500.0,0.00042191,30]
[402008092,1768456309972,-500.0,0.00042191,30]
[402008093,1768456309981,-500.0,0.00042191,30]
[402008094,1768456309990,-500.0,0.00042191,30]
[402008095,1768456309999,-1676.02,0.00042191,30]
[402008096,1768456310009,-500.0,0.00042191,30]
[402008097,1768456310019,-2411.51,0.00042191,30]
[402008098,1768456310028,-529.44351856,0.00042191,30]
[402008099,1768456310037,-500.0,0.00042191,30]
[402008100,1768456310046,-677.02,0.00042191,30]
[402008101,1768456310055,-1265.91,0.00042191,30]
[402008102,1768456310064,-810.25,0.00042191,30]
[402008103,1768456310074,-500.0,0.00042191,30]
[402008104,1768456310083,-196.02575948,0.00042191,30]
[402008105,1768456310093,-1957.85,0.00042191,30]
[402008106,1768456310102,-500.0,0.00042191,30]
[402008107,1768456310112,-1210.89,0.00042191,30]
[402008108,1768456310121,-525.59,0.00042191,30]
[402008109,1768456310131,-500.0,0.00042191,30]
[402008110,1768456310140,-506.93,0.00042191,30]
[402008111,1768456310149,-2083.77,0.00042191,30]
[402008112,1768456310159,-925.59,0.00042191,30]
[402008113,1768456310172,-500.0,0.00042191,30]
[402008114,1768456310182,-612.19,0.00042191,30]
[402008115,1768456310191,-500.0,0.00042191,30]
[402008116,1768456310201,-500.0,0.00042191,30]
[402008117,1768456310211,-500.0,0.00042191,30]
[402008118,1768456310221,-1081.46,0.00042191,30]
[402008119,1768456310231,-500.0,0.00042191,30]
[402008120,1768456310241,-500.0,0.00042191,30]
[402008121,1768456310254,-570.86,0.00042191,30]
[402008122,1768456310264,-500.0,0.00042191,30]
[402008123,1768456310274,-580.23,0.00042191,30]
[402008124,1768456310283,-500.0,0.00042191,30]
[402008125,1768456310292,-460.44183616,0.00042191,30]
[402008126,1768456310300,-500.0,0.00042191,30]
[402008127,1768456310309,-1307.38,0.00042191,30]
[402008128,1768456310340,-574.46717817,0.00042191,30]
[402008129,1768456310357,-500.0,0.00042191,30]
[402008130,1768456310380,-1903.76,0.00042191,30]
[402008131,1768456310398,-1509.71,0.00042191,30]
[402008132,1768456310414,-506.94626426,0.00042191,30]
[402008133,1768456310435,-693.74,0.00042191,30]
[402008134,1768456310455,-1515.33,0.00042191,30]
[402008135,1768456310477,-500.0,0.00042191,30]
[402008136,1768456310496,-517.89,0.00042191,30]
[402008137,1768456310521,-500.0,0.00042191,30]
[402008138,1768456310540,-687.53,0.00042191,30]
[402008139,1768456310558,-1281.85,0.00042191,30]
[402008140,1768456310572,-500.0,0.00042191,30]
[402008141,1768456310592,-1330.12,0.00042191,30]
[402008142,1768456310606,-1408.68,0.00042191,30]
[402008143,1768456310627,-2150.32,0.00042191,30]
[402008144,1768456310648,-577.39,0.00042191,30]
[402008145,1768456310667,-630.02358606,0.00042191,30]
[402008146,1768456310685,-668.11,0.00042191,30]
[402008147,1768456310706,-500.0,0.00042191,30]
[402008148,1768456310727,-1381.77,0.00042191,30]
[402008149,1768456310750,-941.25,0.00042191,30]
[402008150,1768456310771,-516.05956396,0.00042191,30]
[402008151,1768456310790,-500.0,0.00042191,30]
[402008152,1768456310809,-500.0,0.00042191,30]
[402008153,1768456310826,-618.87,0.00042191,30]
[402008154,1768456310846,-500.0,0.00042191,30]
[402008155,1768456310863,-500.0,0.00042191,30]
[402008156,1768456310881,-761.13,0.00042191,30]
[402008157,1768456310898,-500.0,0.00042191,30]
[402008158,1768456310913,-500.0,0.00042191,30]
[402008159,1768456310929,-1981.46,0.00042191,30]
[402008160,1768456310946,-500.0,0.00042191,30]
[402008161,1768456310963,-1553.39,0.00042191,30]
[402008162,1768456310980,-500.0,0.00042191,30]
[402008163,1768456310996,-3119.56,0.00042191,30]
[402008164,1768456311011,-500.0,0.00042191,30]
[402008165,1768456311025,-500.0,0.00042191,30]
[402008166,1768456311039,-500.0,0.00042191,30]
[402008167,1768456311055,-500.0,0.00042191,30]
[402008168,1768456311071,-587.24,0.00042191,30]
[402008169,1768456311090,-500.0,0.00042191,30]
[402008170,1768456311107,-500.0,0.00042191,30]
[402008171,1768456311123,-1640.35,0.00042191,30]
[402008172,1768456311138,-635.35,0.00042191,30]
[402008173,1768456311153,-500.0,0.00042191,30]
[402008174,1768456311171,-947.6,0.00042191,30]
[402008175,1768456311186,-834.05,0.00042191,30]
[402008176,1768456311201,-500.0,0.00042191,30]
[402008177,1768456311217,-932.06752442,0.00042191,30]
[402008178,1768456312686,-796.64971035,0.00041369,30]
[402008179,1768456312707,-507.53028965,0.00041369,30]
[402008180,1768456312716,-249.45647554,0.00041369,30]
[402008181,1768456312727,-250.54352446,0.00041369,30]
[402008182,1768456312737,-228.44247558,0.00042191,30]
[402008183,1768456312746,-500.0,0.00042191,30]
[402008184,1768456312755,-889.08,0.00042191,30]
[402008185,1768456312765,-542.81485516,0.00042191,30]
[402008186,1768456312774,-866.78,0.00042191,30]
[402008187,1768456312784,-500.0,0.00042191,30]
[402008188,1768456312793,-592.22,0.00042191,30]
[402008189,1768456312802,-500.0,0.00042191,30]
[402008190,1768456312811,-1417.17,0.00042191,30]
[402008191,1768456312820,-973.23,0.00042191,30]
[402008192,1768456312829,-898.7,0.00042191,30]
[402008193,1768456312838,-500.0,0.00042191,30]
[402008194,1768456312847,-1786.57,0.00042191,30]
[402008195,1768456312855,-996.95,0.00042191,30]
[402008196,1768456312864,-500.0,0.00042191,30]
[402008197,1768456312873,-500.0,0.00042191,30]
[402008198,1768456312883,-1938.87,0.00042191,30]
[402008199,1768456312892,-500.0,0.00042191,30]
[402008200,1768456312904,-500.0,0.00042191,30]
[402008201,1768456312914,-500.0,0.00042191,30]
[402008202,1768456312923,-500.0,0.00042191,30]
[402008203,1768456312933,-983.72,0.00042191,30]
[402008204,1768456312943,-500.0,0.00042191,30]
[402008205,1768456312952,-1322.04,0.00042191,30]
[402008206,1768456312961,-500.0,0.00042191,30]
[402008207,1768456312970,-981.72,0.00042191,30]
[402008208,1768456312979,-1114.48,0.00042191,30]
[402008209,1768456312988,-569.39911211,0.00042191,30]
[402008210,1768456312997,-500.0,0.00042191,30]
[402008211,1768456313006,-500.0,0.00042191,30]
[402008212,1768456313015,-1290.94,0.00042191,30]
[402008213,1768456313023,-923.78,0.00042191,30]
[402008214,1768456313033,-902.39,0.00042191,30]
[402008215,1768456313042,-1298.08,0.00042191,30]
[402008216,1768456313051,-765.65,0.00042191,30]
[402008217,1768456313060,-500.0,0.00042191,30]
[402008218,1768456313073,-550.96,0.00042191,30]
[402008219,1768456313083,-1712.6,0.00042191,30]
[402008220,1768456313093,-1663.22,0.00042191,30]
[402008221,1768456313102,-500.0,0.00042191,30]
[402008222,1768456313111,-500.0,0.00042191,30]
[402008223,1768456313121,-567.83,0.00042191,30]
[402008224,1768456313131,-500.0,0.00042191,30]
[402008225,1768456313140,-728.49,0.00042191,30]
[402008226,1768456313151,-836.88,0.00042191,30]
[402008227,1768456313162,-1472.36,0.00042191,30]
[402008228,1768456313173,-500.0,0.00042191,30]
[402008229,1768456313183,-500.0,0.00042191,30]
[402008230,1768456313193,-500.0,0.00042191,30]
[402008231,1768456313203,-1752.48,0.00042191,30]
[402008232,1768456313213,-1282.29,0.00042191,30]
[402008233,1768456313222,-500.0,0.00042191,30]
[402008234,1768456313231,-515.93,0.00042191,30]
[402008235,1768456313243,-1625.58,0.00042191,30]
[402008236,1768456313252,-500.0,0.00042191,30]
[402008237,1768456313262,-500.0,0.00042191,30]
[402008238,1768456313272,-1031.64,0.00042191,30]
[402008239,1768456313281,-1546.57,0.00042191,30]
[402008240,1768456313291,-500.0,0.00042191,30]
[402008241,1768456313300,-500.0,0.00042191,30]
[402008242,1768456313310,-898.37,0.00042191,30]
[402008243,1768456313319,-731.92,0.00042191,30]
[402008244,1768456313328,-611.18,0.00042191,30]
[402008245,1768456313337,-500.0,0.00042191,30]
[402008246,1768456313347,-500.0,0.00042191,30]
[402008247,1768456313356,-500.0,0.00042191,30]
[402008248,1768456313366,-830.99,0.00042191,30]
[402008249,1768456313375,-500.0,0.00042191,30]
[402008250,1768456313385,-500.0,0.00042191,30]
[402008251,1768456313394,-1327.4,0.00042191,30]
[402008252,1768456313405,-1352.98,0.00042191,30]
[402008253,1768456313415,-1623.62,0.00042191,30]
[402008254,1768456313425,-500.0,0.00042191,30]
[402008255,1768456313435,-500.0,0.00042191,30]
[402008256,1768456313445,-500.0,0.00042191,30]
[402008257,1768456313454,-1474.95,0.00042191,30]
[402008258,1768456313464,-1126.83,0.00042191,30]
[402008259,1768456313474,-838.95,0.00042191,30]
[402008260,1768456313483,-625.63,0.00042191,30]
[402008261,1768456313493,-519.73676125,0.00042191,30]
[402008262,1768456313502,-3417.33,0.00042191,30]
[402008263,1768456313512,-500.0,0.00042191,30]
[402008264,1768456313521,-737.76,0.00042191,30]
[402008265,1768456313531,-213.69505414,0.00042191,30]
[402008266,1768456313540,-500.0,0.00042191,30]
[402008267,1768456313550,-1849.62,0.00042191,30]
[402008268,1768456313559,-244.75515449,0.00042191,30]
[402008269,1768456313569,-910.66,0.00042191,30]
[402008270,1768456313579,-500.0,0.00042191,30]
[402008271,1768456313588,-1081.92,0.00042191,30]
[402008272,1768456313599,-879.87,0.00042191,30]
[402008273,1768456313608,-500.0,0.00042191,30]
[402008274,1768456313617,-500.0,0.00042191,30]
[402008275,1768456313627,-500.0,0.00042191,30]
[402008276,1768456313636,-684.98,0.00042191,30]
[402008277,1768456313646,-500.0,0.00042191,30]
[402008278,1768456313657,-1058.06,0.00042191,30]
[402008279,1768456313666,-614.08439578,0.00042191,30]
[402008280,1768456313676,-1873.12,0.00042191,30]
[402008281,1768456313686,-500.0,0.00042191,30]
[402008282,1768456313695,-500.0,0.00042191,30]
[402008283,1768456313704,-1840.97,0.00042191,30]
[402008284,1768456313713,-500.0,0.00042191,30]
[402008285,1768456313722,-500.0,0.00042191,30]
[402008286,1768456313732,-1107.51,0.00042191,30]
[402008287,1768456313742,-500.0,0.00042191,30]
[402008288,1768456313751,-500.0,0.00042191,30]
[402008289,1768456313761,-500.0,0.00042191,30]
[402008290,1768456313770,-1052.64,0.00042191,30]
[402008291,1768456313779,-752.36,0.00042191,30]
[402008292,1768456313789,-500.0,0.00042191,30]
[402008293,1768456313799,-500.0,0.00042191,30]
[402008294,1768456313812,-500.0,0.00042191,30]
[402008295,1768456313822,-1837.54,0.00042191,30]
[402008296,1768456313831,-500.0,0.00042191,30]
[402008297,1768456313841,-1368.1,0.00042191,30]
[402008298,1768456313850,-500.0,0.00042191,30]
[402008299,1768456313860,-1274.16,0.00042191,30]
[402008300,1768456313870,-658.15,0.00042191,30]
[402008301,1768456313880,-602.98,0.00042191,30]
[402008302,1768456313891,-765.62,0.00042191,30]
[402008303,1768456313903,-579.51,0.00042191,30]
[402008304,1768456313913,-858.81,0.00042191,30]
[402008305,1768456313923,-1169.99,0.00042191,30]